[Event "Titled Tuesday Blitz August 1 Early 2023"]
[White "Derige Kane, Yan"]
[Black "Rosh Jain"]
[WhiteFideId "20665431"]
[BlackFideId "25789465"]
[WhiteElo "2603"]
[BlackElo "2466"]
[Result "0-1"]
[Round "8"]
[TimeControl "180+1"]
[Date "2023.08.01"]
[WhiteClock "0:02:04"]
[BlackClock "0:00:51"]
[Board "85"]

1. d4 {[%clk 0:03:00]}  Nf6 {[%clk 0:02:58]} 2. c4 {[%clk 0:03:01]}  e6 {[%clk 0:02:58]} 3. Nc3 {[%clk 0:03:02]}  Bb4 {[%clk 0:02:56]} 4. e3 {[%clk 0:02:59]}  O-O {[%clk 0:02:55]} 5. Bd3 {[%clk 0:02:59]}  d5 {[%clk 0:02:53]} 6. Ne2 {[%clk 0:02:58]}  b6 {[%clk 0:02:50]} 7. O-O {[%clk 0:02:58]}  dxc4 {[%clk 0:02:49]} 8. Bxc4 {[%clk 0:02:57]}  Bb7 {[%clk 0:02:50]} 9. a3 {[%clk 0:02:55]}  Bd6 {[%clk 0:02:49]} 10. f3 {[%clk 0:02:55]}  c5 {[%clk 0:02:48]} 11. e4 {[%clk 0:02:50]}  cxd4 {[%clk 0:02:47]} 12. Nxd4 {[%clk 0:02:51]}  Bxh2+ {[%clk 0:02:38]} 13. Kh1 {[%clk 0:02:49]}  Be5 {[%clk 0:02:10]} 14. Ndb5 {[%clk 0:02:47]}  Qe7 {[%clk 0:02:03]} 15. Bg5 {[%clk 0:02:44]}  h6 {[%clk 0:01:58]} 16. Bh4 {[%clk 0:02:43]}  Rd8 {[%clk 0:01:53]} 17. Qe1 {[%clk 0:02:41]}  a6 {[%clk 0:01:53]} 18. f4 {[%clk 0:02:41]}  Bxf4 {[%clk 0:01:44]} 19. Rxf4 {[%clk 0:02:39]}  g5 {[%clk 0:01:44]} 20. Qg3 {[%clk 0:02:38]}  Nh5 {[%clk 0:01:38]} 21. Qg4 {[%clk 0:02:38]}  Nxf4 {[%clk 0:01:38]} 22. Rf1 {[%clk 0:02:34]}  axb5 {[%clk 0:01:34]} 23. Nxb5 {[%clk 0:02:35]}  Ng6 {[%clk 0:01:30]} 24. Bg3 {[%clk 0:02:31]}  Nc6 {[%clk 0:01:30]} 25. Nc7 {[%clk 0:02:29]}  Nce5 {[%clk 0:01:25]} 26. Qh5 {[%clk 0:02:18]}  Qxc7 {[%clk 0:01:15]} 27. Bxe6 {[%clk 0:02:17]}  fxe6 {[%clk 0:01:12]} 28. Rf6 {[%clk 0:02:17]}  Qg7 {[%clk 0:01:10]} 29. Rxe6 {[%clk 0:02:17]}  Bxe4 {[%clk 0:00:57]} 30. Rxb6 {[%clk 0:02:16]}  Rd2 {[%clk 0:00:55]} 31. Bxe5 {[%clk 0:02:11]}  Nxe5 {[%clk 0:00:51]} 32. Re6 {[%clk 0:02:06]}  Bxg2+ {[%clk 0:00:51]} 33. Kh2 {[%clk 0:02:05]}  Nf3+ {[%clk 0:00:52]} 34. Kg3 {[%clk 0:02:05]}  Qc7+ {[%clk 0:00:51]} 35. Kg4 {[%clk 0:02:04]}  Qf4# {[%clk 0:00:51]} 0-1


[Site "https://www.chess.com"]

[Event "Titled Tuesday Blitz August 1 Early 2023"]
[White "brm72"]
[Black "Herman, Daniel"]
[BlackFideId "30935008"]
[WhiteElo "2599"]
[BlackElo "2450"]
[Result "1-0"]
[Round "8"]
[TimeControl "180+1"]
[Date "2023.08.01"]
[WhiteClock "0:00:04"]
[BlackClock "0:00:00"]
[Board "86"]

1. e4 {[%clk 0:03:00]}  e6 {[%clk 0:02:59]} 2. d4 {[%clk 0:03:00]}  d5 {[%clk 0:02:59]} 3. e5 {[%clk 0:03:01]}  c5 {[%clk 0:02:59]} 4. c3 {[%clk 0:03:02]}  Nc6 {[%clk 0:03:00]} 5. Nf3 {[%clk 0:03:02]}  Bd7 {[%clk 0:02:59]} 6. Be2 {[%clk 0:02:54]}  Rc8 {[%clk 0:02:53]} 7. O-O {[%clk 0:02:54]}  Nge7 {[%clk 0:02:49]} 8. Na3 {[%clk 0:02:45]}  cxd4 {[%clk 0:02:43]} 9. cxd4 {[%clk 0:02:45]}  Nf5 {[%clk 0:02:40]} 10. Nc2 {[%clk 0:02:44]}  Be7 {[%clk 0:02:36]} 11. a3 {[%clk 0:02:44]}  Na5 {[%clk 0:02:17]} 12. Ne3 {[%clk 0:02:29]}  Nxe3 {[%clk 0:02:14]} 13. Bxe3 {[%clk 0:02:27]}  Nc4 {[%clk 0:02:14]} 14. b3 {[%clk 0:02:02]}  Nxe3 {[%clk 0:02:13]} 15. fxe3 {[%clk 0:02:03]}  O-O {[%clk 0:02:01]} 16. b4 {[%clk 0:01:57]}  Qb6 {[%clk 0:01:22]} 17. Qd2 {[%clk 0:01:55]}  Bb5 {[%clk 0:01:18]} 18. Rfc1 {[%clk 0:01:41]}  f6 {[%clk 0:00:57]} 19. exf6 {[%clk 0:01:14]}  Bxf6 {[%clk 0:00:54]} 20. Bxb5 {[%clk 0:01:13]}  Qxb5 {[%clk 0:00:55]} 21. a4 {[%clk 0:01:14]}  Qb6 {[%clk 0:00:42]} 22. b5 {[%clk 0:01:09]}  Qd6 {[%clk 0:00:35]} 23. Qa5 {[%clk 0:00:53]}  a6 {[%clk 0:00:17]} 24. bxa6 {[%clk 0:00:52]}  Qxa6 {[%clk 0:00:17]} 25. Qb4 {[%clk 0:00:43]}  Qe2 {[%clk 0:00:14]} 26. Re1 {[%clk 0:00:43]}  Qa6 {[%clk 0:00:13]} 27. Reb1 {[%clk 0:00:43]}  Qd3 {[%clk 0:00:12]} 28. Rb3 {[%clk 0:00:40]}  Qe2 {[%clk 0:00:11]} 29. Re1 {[%clk 0:00:38]}  Qa2 {[%clk 0:00:11]} 30. Rb2 {[%clk 0:00:36]}  Qc4 {[%clk 0:00:11]} 31. Reb1 {[%clk 0:00:20]}  Qd3 {[%clk 0:00:09]} 32. Rb3 {[%clk 0:00:19]}  Qe2 {[%clk 0:00:08]} 33. h3 {[%clk 0:00:18]}  Rc2 {[%clk 0:00:07]} 34. Ne1 {[%clk 0:00:13]}  Rd2 {[%clk 0:00:07]} 35. R3b2 {[%clk 0:00:12]}  Rxb2 {[%clk 0:00:07]} 36. Qxb2 {[%clk 0:00:13]}  Qxe3+ {[%clk 0:00:07]} 37. Qf2 {[%clk 0:00:09]}  Qxf2+ {[%clk 0:00:06]} 38. Kxf2 {[%clk 0:00:10]}  Bxd4+ {[%clk 0:00:06]} 39. Ke2 {[%clk 0:00:11]}  b6 {[%clk 0:00:07]} 40. Nf3 {[%clk 0:00:11]}  Bc5 {[%clk 0:00:07]} 41. Rb5 {[%clk 0:00:11]}  e5 {[%clk 0:00:07]} 42. a5 {[%clk 0:00:10]}  e4 {[%clk 0:00:07]} 43. Ng5 {[%clk 0:00:09]}  Rf2+ {[%clk 0:00:07]} 44. Ke1 {[%clk 0:00:10]}  Rxg2 {[%clk 0:00:03]} 45. Ne6 {[%clk 0:00:10]}  Be3 {[%clk 0:00:03]} 46. axb6 {[%clk 0:00:08]}  d4 {[%clk 0:00:04]} 47. b7 {[%clk 0:00:07]}  d3 {[%clk 0:00:03]} 48. b8=Q+ {[%clk 0:00:07]}  Kf7 {[%clk 0:00:04]} 49. Qf8+ {[%clk 0:00:03]}  Kxe6 {[%clk 0:00:04]} 50. Qf5+ {[%clk 0:00:03]}  Ke7 {[%clk 0:00:04]} 51. Qxe4+ {[%clk 0:00:03]}  Kd6 {[%clk 0:00:04]} 52. Qxg2 {[%clk 0:00:04]}  d2+ {[%clk 0:00:00]} 53. Kd1 {[%clk 0:00:04]} 1-0


[Site "https://www.chess.com"]

[Event "Titled Tuesday Blitz August 1 Early 2023"]
[White "vishwa_vijeta"]
[Black "Pandey Srishti"]
[BlackFideId "35093290"]
[WhiteElo "2597"]
[BlackElo "2448"]
[Result "0-1"]
[Round "8"]
[TimeControl "180+1"]
[Date "2023.08.01"]
[WhiteClock "0:00:11"]
[BlackClock "0:00:14"]
[Board "87"]

1. e4 {[%clk 0:03:00]}  e5 {[%clk 0:02:56]} 2. Nf3 {[%clk 0:03:01]}  Nf6 {[%clk 0:02:54]} 3. d4 {[%clk 0:03:01]}  Nxe4 {[%clk 0:02:51]} 4. Bd3 {[%clk 0:03:00]}  d5 {[%clk 0:02:47]} 5. Nxe5 {[%clk 0:02:56]}  Bd6 {[%clk 0:02:45]} 6. O-O {[%clk 0:02:43]}  O-O {[%clk 0:02:45]} 7. Nd2 {[%clk 0:02:36]}  Nxd2 {[%clk 0:02:44]} 8. Bxd2 {[%clk 0:02:37]}  Nd7 {[%clk 0:02:44]} 9. Re1 {[%clk 0:02:31]}  Qh4 {[%clk 0:02:26]} 10. g3 {[%clk 0:02:09]}  Qh3 {[%clk 0:02:22]} 11. Qf3 {[%clk 0:01:51]}  Nf6 {[%clk 0:02:13]} 12. Bg5 {[%clk 0:01:40]}  Ng4 {[%clk 0:02:08]} 13. Nxg4 {[%clk 0:01:37]}  Bxg4 {[%clk 0:02:09]} 14. Qxd5 {[%clk 0:01:38]}  Qh5 {[%clk 0:02:02]} 15. Qe4 {[%clk 0:00:56]}  Bf3 {[%clk 0:01:53]} 16. Qh4 {[%clk 0:00:56]}  Qxh4 {[%clk 0:01:51]} 17. Bxh4 {[%clk 0:00:57]}  f6 {[%clk 0:01:45]} 18. g4 {[%clk 0:00:55]}  Bxg4 {[%clk 0:01:38]} 19. Bg3 {[%clk 0:00:54]}  Bxg3 {[%clk 0:01:33]} 20. hxg3 {[%clk 0:00:55]}  Rfe8 {[%clk 0:01:34]} 21. c3 {[%clk 0:00:54]}  Bf3 {[%clk 0:01:31]} 22. Bc4+ {[%clk 0:00:52]}  Kf8 {[%clk 0:01:29]} 23. Re3 {[%clk 0:00:50]}  Rxe3 {[%clk 0:01:28]} 24. fxe3 {[%clk 0:00:51]}  Re8 {[%clk 0:01:25]} 25. Re1 {[%clk 0:00:49]}  g5 {[%clk 0:01:22]} 26. Rf1 {[%clk 0:00:45]}  g4 {[%clk 0:01:18]} 27. Kf2 {[%clk 0:00:43]}  Kg7 {[%clk 0:01:14]} 28. Be2 {[%clk 0:00:41]}  Bxe2 {[%clk 0:01:13]} 29. Kxe2 {[%clk 0:00:42]}  Kg6 {[%clk 0:01:12]} 30. Kd3 {[%clk 0:00:40]}  f5 {[%clk 0:01:12]} 31. Rf4 {[%clk 0:00:39]}  h5 {[%clk 0:00:59]} 32. e4 {[%clk 0:00:33]}  fxe4+ {[%clk 0:00:45]} 33. Rxe4 {[%clk 0:00:29]}  Rxe4 {[%clk 0:00:29]} 34. Kxe4 {[%clk 0:00:30]}  Kg5 {[%clk 0:00:30]} 35. Ke3 {[%clk 0:00:28]}  h4 {[%clk 0:00:17]} 36. Kf2 {[%clk 0:00:24]}  h3 {[%clk 0:00:16]} 37. c4 {[%clk 0:00:23]}  Kf5 {[%clk 0:00:16]} 38. d5 {[%clk 0:00:21]}  Ke5 {[%clk 0:00:14]} 39. b3 {[%clk 0:00:22]}  Kd4 {[%clk 0:00:14]} 40. Kg1 {[%clk 0:00:20]}  b6 {[%clk 0:00:14]} 41. Kh2 {[%clk 0:00:19]}  a5 {[%clk 0:00:15]} 42. a3 {[%clk 0:00:18]}  Kc3 {[%clk 0:00:15]} 43. b4 {[%clk 0:00:11]}  axb4 {[%clk 0:00:15]} 44. a4 {[%clk 0:00:12]}  b3 {[%clk 0:00:15]} 45. c5 {[%clk 0:00:11]}  b2 {[%clk 0:00:13]} 46. cxb6 {[%clk 0:00:10]}  b1=Q {[%clk 0:00:13]} 47. bxc7 {[%clk 0:00:11]}  Qc2+ {[%clk 0:00:14]} 48. Kg1 {[%clk 0:00:11]}  Qg2# {[%clk 0:00:14]} 0-1


[Site "https://www.chess.com"]

[Event "Titled Tuesday Blitz August 1 Early 2023"]
[White "FREDERICKtheMATE"]
[Black "Saya, Ethan"]
[BlackFideId "26095181"]
[WhiteElo "2434"]
[BlackElo "2584"]
[Result "0-1"]
[Round "8"]
[TimeControl "180+1"]
[Date "2023.08.01"]
[WhiteClock "0:00:27"]
[BlackClock "0:00:17"]
[Board "89"]

1. Nf3 {[%clk 0:03:00]}  d5 {[%clk 0:02:56]} 2. g3 {[%clk 0:03:01]}  Nd7 {[%clk 0:02:48]} 3. d4 {[%clk 0:03:00]}  Nb6 {[%clk 0:02:47]} 4. Bg2 {[%clk 0:03:00]}  Bf5 {[%clk 0:02:41]} 5. O-O {[%clk 0:03:00]}  e6 {[%clk 0:02:39]} 6. b3 {[%clk 0:03:00]}  h6 {[%clk 0:02:32]} 7. Bb2 {[%clk 0:03:00]}  Nf6 {[%clk 0:02:30]} 8. Nbd2 {[%clk 0:03:00]}  Ne4 {[%clk 0:02:26]} 9. c4 {[%clk 0:02:58]}  c6 {[%clk 0:02:23]} 10. Rc1 {[%clk 0:02:57]}  Be7 {[%clk 0:02:15]} 11. Ne5 {[%clk 0:02:57]}  Nxd2 {[%clk 0:02:12]} 12. Qxd2 {[%clk 0:02:55]}  Nd7 {[%clk 0:02:12]} 13. Nxd7 {[%clk 0:02:51]}  Qxd7 {[%clk 0:02:13]} 14. Rfe1 {[%clk 0:02:49]}  O-O {[%clk 0:02:12]} 15. e4 {[%clk 0:02:49]}  dxe4 {[%clk 0:02:13]} 16. Bxe4 {[%clk 0:02:49]}  Bxe4 {[%clk 0:02:12]} 17. Rxe4 {[%clk 0:02:50]}  Bf6 {[%clk 0:02:10]} 18. Qe2 {[%clk 0:02:45]}  Rad8 {[%clk 0:02:07]} 19. f4 {[%clk 0:02:42]}  Qc7 {[%clk 0:02:00]} 20. h4 {[%clk 0:02:22]}  Rd7 {[%clk 0:01:52]} 21. Qf2 {[%clk 0:02:09]}  Qa5 {[%clk 0:01:34]} 22. Bc3 {[%clk 0:02:04]}  Qd8 {[%clk 0:01:33]} 23. h5 {[%clk 0:01:49]}  c5 {[%clk 0:01:18]} 24. dxc5 {[%clk 0:01:45]}  Bxc3 {[%clk 0:01:19]} 25. Rxc3 {[%clk 0:01:44]}  Rd1+ {[%clk 0:01:20]} 26. Re1 {[%clk 0:01:40]}  Rd2 {[%clk 0:01:20]} 27. Re2 {[%clk 0:01:37]}  Rxe2 {[%clk 0:01:10]} 28. Qxe2 {[%clk 0:01:38]}  Qd4+ {[%clk 0:01:10]} 29. Qe3 {[%clk 0:01:13]}  Qd1+ {[%clk 0:01:08]} 30. Kg2 {[%clk 0:01:12]}  Rd8 {[%clk 0:01:09]} 31. Qf3 {[%clk 0:01:05]}  Rd2+ {[%clk 0:00:36]} 32. Kh3 {[%clk 0:01:05]}  Qg1 {[%clk 0:00:36]} 33. f5 {[%clk 0:00:36]}  Rh2+ {[%clk 0:00:30]} 34. Kg4 {[%clk 0:00:35]}  Qd4+ {[%clk 0:00:31]} 35. Qf4 {[%clk 0:00:30]}  Qxc3 {[%clk 0:00:30]} 36. fxe6 {[%clk 0:00:29]}  fxe6 {[%clk 0:00:20]} 37. Qe4 {[%clk 0:00:24]}  Qf6 {[%clk 0:00:13]} 38. b4 {[%clk 0:00:24]}  Rf2 {[%clk 0:00:08]} 39. b5 {[%clk 0:00:18]}  Qf5+ {[%clk 0:00:07]} 40. Qxf5 {[%clk 0:00:17]}  exf5+ {[%clk 0:00:08]} 41. Kh3 {[%clk 0:00:17]}  Rc2 {[%clk 0:00:09]} 42. c6 {[%clk 0:00:17]}  bxc6 {[%clk 0:00:09]} 43. bxc6 {[%clk 0:00:18]}  Rxc4 {[%clk 0:00:09]} 44. Kg2 {[%clk 0:00:18]}  Rxc6 {[%clk 0:00:09]} 45. Kf3 {[%clk 0:00:19]}  Ra6 {[%clk 0:00:09]} 46. Kf4 {[%clk 0:00:20]}  Rxa2 {[%clk 0:00:10]} 47. Kxf5 {[%clk 0:00:21]}  a5 {[%clk 0:00:10]} 48. g4 {[%clk 0:00:22]}  a4 {[%clk 0:00:11]} 49. Kg6 {[%clk 0:00:22]}  a3 {[%clk 0:00:12]} 50. g5 {[%clk 0:00:22]}  Rg2 {[%clk 0:00:10]} 51. Kf5 {[%clk 0:00:22]}  Rxg5+ {[%clk 0:00:11]} 52. Ke4 {[%clk 0:00:22]}  Rb5 {[%clk 0:00:12]} 53. Kd3 {[%clk 0:00:23]}  Rb8 {[%clk 0:00:12]} 54. Kc2 {[%clk 0:00:24]}  a2 {[%clk 0:00:13]} 55. Kc3 {[%clk 0:00:24]}  a1=Q+ {[%clk 0:00:13]} 56. Kc4 {[%clk 0:00:25]}  Qa5 {[%clk 0:00:14]} 57. Kd4 {[%clk 0:00:25]}  Rb4+ {[%clk 0:00:14]} 58. Ke3 {[%clk 0:00:25]}  Qa3+ {[%clk 0:00:15]} 59. Kf2 {[%clk 0:00:26]}  Rb2+ {[%clk 0:00:16]} 60. Kg1 {[%clk 0:00:27]}  Qa1# {[%clk 0:00:17]} 0-1


[Site "https://www.chess.com"]

[Event "Titled Tuesday Blitz August 1 Early 2023"]
[White "Borgaonkar Akshay"]
[Black "WindWhistler11"]
[WhiteFideId "25639110"]
[WhiteElo "2578"]
[BlackElo "2429"]
[Result "1-0"]
[Round "8"]
[TimeControl "180+1"]
[Date "2023.08.01"]
[WhiteClock "0:00:17"]
[BlackClock "0:00:00"]
[Board "90"]

1. Nf3 {[%clk 0:02:59]}  e6 {[%clk 0:02:59]} 2. g3 {[%clk 0:02:59]}  Nf6 {[%clk 0:02:59]} 3. Bg2 {[%clk 0:03:00]}  d5 {[%clk 0:02:58]} 4. O-O {[%clk 0:03:00]}  g6 {[%clk 0:02:59]} 5. d3 {[%clk 0:03:01]}  Bg7 {[%clk 0:02:59]} 6. c4 {[%clk 0:03:00]}  O-O {[%clk 0:02:58]} 7. Nc3 {[%clk 0:02:57]}  b6 {[%clk 0:02:58]} 8. cxd5 {[%clk 0:02:56]}  exd5 {[%clk 0:02:58]} 9. d4 {[%clk 0:02:57]}  Bb7 {[%clk 0:02:58]} 10. Bf4 {[%clk 0:02:57]}  Na6 {[%clk 0:02:58]} 11. Rc1 {[%clk 0:02:54]}  c6 {[%clk 0:02:51]} 12. Ne5 {[%clk 0:02:50]}  Rc8 {[%clk 0:02:44]} 13. Bh3 {[%clk 0:02:45]}  Rc7 {[%clk 0:02:41]} 14. Qa4 {[%clk 0:02:30]}  Nh5 {[%clk 0:02:16]} 15. Bd2 {[%clk 0:02:28]}  c5 {[%clk 0:02:07]} 16. Nb5 {[%clk 0:02:22]}  Qe8 {[%clk 0:02:05]} 17. b3 {[%clk 0:02:12]}  Re7 {[%clk 0:02:04]} 18. Nd6 {[%clk 0:01:05]}  Qxa4 {[%clk 0:01:49]} 19. bxa4 {[%clk 0:01:06]}  Ba8 {[%clk 0:01:43]} 20. f4 {[%clk 0:01:01]}  f6 {[%clk 0:01:25]} 21. Nd7 {[%clk 0:00:56]}  Rd8 {[%clk 0:01:24]} 22. dxc5 {[%clk 0:00:56]}  bxc5 {[%clk 0:00:22]} 23. Nxc5 {[%clk 0:00:55]}  Nxc5 {[%clk 0:00:19]} 24. Rxc5 {[%clk 0:00:56]}  Rxe2 {[%clk 0:00:17]} 25. Bb4 {[%clk 0:00:52]}  f5 {[%clk 0:00:14]} 26. Nb5 {[%clk 0:00:52]}  a6 {[%clk 0:00:14]} 27. Nc7 {[%clk 0:00:32]}  Bd4+ {[%clk 0:00:13]} 28. Kh1 {[%clk 0:00:33]}  Bxc5 {[%clk 0:00:14]} 29. Bxc5 {[%clk 0:00:33]}  d4+ {[%clk 0:00:13]} 30. Kg1 {[%clk 0:00:33]}  Be4 {[%clk 0:00:11]} 31. Ne6 {[%clk 0:00:29]}  Rc8 {[%clk 0:00:10]} 32. Bxd4 {[%clk 0:00:29]}  Rcc2 {[%clk 0:00:11]} 33. Bf2 {[%clk 0:00:29]}  Nf6 {[%clk 0:00:10]} 34. Nd4 {[%clk 0:00:29]}  Bd3 {[%clk 0:00:07]} 35. Nxc2 {[%clk 0:00:28]}  Rxc2 {[%clk 0:00:07]} 36. Rd1 {[%clk 0:00:27]}  Bc4 {[%clk 0:00:07]} 37. Bg2 {[%clk 0:00:22]}  Ng4 {[%clk 0:00:06]} 38. Bb6 {[%clk 0:00:18]}  Rb2 {[%clk 0:00:02]} 39. a5 {[%clk 0:00:18]}  Rxa2 {[%clk 0:00:00]} 40. Rc1 {[%clk 0:00:17]} 1-0


[Site "https://www.chess.com"]

[Event "Titled Tuesday Blitz August 1 Early 2023"]
[White "Cnejev, Vladimir-Alexandru"]
[Black "Al Mukhaini, Shima"]
[WhiteFideId "1260898"]
[BlackFideId "22005854"]
[WhiteElo "2575"]
[BlackElo "2428"]
[Result "1-0"]
[Round "8"]
[TimeControl "180+1"]
[Date "2023.08.01"]
[WhiteClock "0:00:59"]
[BlackClock "0:01:33"]
[Board "92"]

1. Nf3 {[%clk 0:03:00]}  d5 {[%clk 0:02:59]} 2. b3 {[%clk 0:03:00]}  Nf6 {[%clk 0:02:57]} 3. Bb2 {[%clk 0:02:59]}  Bf5 {[%clk 0:02:56]} 4. e3 {[%clk 0:02:59]}  e6 {[%clk 0:02:56]} 5. h3 {[%clk 0:02:59]}  Be7 {[%clk 0:02:56]} 6. g4 {[%clk 0:02:59]}  Bg6 {[%clk 0:02:56]} 7. Rg1 {[%clk 0:02:54]}  h6 {[%clk 0:02:54]} 8. Ne5 {[%clk 0:02:54]}  Bh7 {[%clk 0:02:54]} 9. f4 {[%clk 0:02:54]}  Nbd7 {[%clk 0:02:49]} 10. d3 {[%clk 0:02:53]}  Nxe5 {[%clk 0:02:47]} 11. Bxe5 {[%clk 0:02:54]}  Nd7 {[%clk 0:02:48]} 12. Bxg7 {[%clk 0:02:52]}  Bh4+ {[%clk 0:02:48]} 13. Kd2 {[%clk 0:02:49]}  Rg8 {[%clk 0:02:48]} 14. Bb2 {[%clk 0:02:47]}  Bf6 {[%clk 0:02:44]} 15. Bxf6 {[%clk 0:02:40]}  Qxf6 {[%clk 0:02:43]} 16. Nc3 {[%clk 0:02:36]}  d4 {[%clk 0:02:41]} 17. Ne4 {[%clk 0:02:33]}  Bxe4 {[%clk 0:02:39]} 18. dxe4 {[%clk 0:02:34]}  dxe3+ {[%clk 0:02:37]} 19. Kxe3 {[%clk 0:02:35]}  O-O-O {[%clk 0:02:36]} 20. Bd3 {[%clk 0:02:32]}  e5 {[%clk 0:02:35]} 21. Qf3 {[%clk 0:02:27]}  exf4+ {[%clk 0:02:28]} 22. Qxf4 {[%clk 0:02:27]}  Qb6+ {[%clk 0:02:27]} 23. Ke2 {[%clk 0:02:21]}  f6 {[%clk 0:02:20]} 24. Raf1 {[%clk 0:02:11]}  Rge8 {[%clk 0:02:18]} 25. Qxh6 {[%clk 0:02:06]}  Re6 {[%clk 0:02:09]} 26. Qe3 {[%clk 0:02:04]}  Qd6 {[%clk 0:02:01]} 27. Rg2 {[%clk 0:02:01]}  Kb8 {[%clk 0:01:59]} 28. Rgf2 {[%clk 0:01:52]}  Rde8 {[%clk 0:01:59]} 29. Kf3 {[%clk 0:01:37]}  Ne5+ {[%clk 0:01:56]} 30. Kg2 {[%clk 0:01:36]}  Ng6 {[%clk 0:01:57]} 31. Qg3 {[%clk 0:01:33]}  Qd4 {[%clk 0:01:54]} 32. h4 {[%clk 0:01:32]}  Ne5 {[%clk 0:01:50]} 33. Rf4 {[%clk 0:01:09]}  a6 {[%clk 0:01:47]} 34. Qf2 {[%clk 0:01:07]}  Nxd3 {[%clk 0:01:42]} 35. Qxd4 {[%clk 0:01:06]}  Nxf4+ {[%clk 0:01:42]} 36. Rxf4 {[%clk 0:01:07]}  Rd6 {[%clk 0:01:41]} 37. Qf2 {[%clk 0:01:05]}  Red8 {[%clk 0:01:41]} 38. Qg3 {[%clk 0:01:03]}  Rd2+ {[%clk 0:01:40]} 39. Rf2 {[%clk 0:01:03]}  R2d4 {[%clk 0:01:39]} 40. Rxf6 {[%clk 0:01:00]}  Rxe4 {[%clk 0:01:40]} 41. h5 {[%clk 0:01:00]}  Rd2+ {[%clk 0:01:33]} 42. Rf2 {[%clk 0:00:59]} 1-0


[Site "https://www.chess.com"]

[Event "Titled Tuesday Blitz August 1 Early 2023"]
[White "Begunov, Konstantin"]
[Black "Ahmad, Khagan"]
[WhiteFideId "4118510"]
[BlackFideId "13431552"]
[WhiteElo "2415"]
[BlackElo "2570"]
[Result "0-1"]
[Round "8"]
[TimeControl "180+1"]
[Date "2023.08.01"]
[WhiteClock "0:00:09"]
[BlackClock "0:00:06"]
[Board "94"]

1. d4 {[%clk 0:03:00]}  Nf6 {[%clk 0:02:57]} 2. c4 {[%clk 0:03:01]}  e6 {[%clk 0:02:54]} 3. Nf3 {[%clk 0:03:00]}  d5 {[%clk 0:02:49]} 4. Nc3 {[%clk 0:03:00]}  Bb4 {[%clk 0:02:46]} 5. Qa4+ {[%clk 0:02:58]}  Nc6 {[%clk 0:02:46]} 6. Ne5 {[%clk 0:02:59]}  Bd7 {[%clk 0:02:24]} 7. Nxc6 {[%clk 0:02:57]}  Bxc3+ {[%clk 0:02:23]} 8. bxc3 {[%clk 0:02:58]}  Bxc6 {[%clk 0:02:22]} 9. Qb3 {[%clk 0:02:53]}  dxc4 {[%clk 0:02:10]} 10. Qxc4 {[%clk 0:02:52]}  O-O {[%clk 0:02:10]} 11. Bg5 {[%clk 0:02:45]}  h6 {[%clk 0:02:09]} 12. Bh4 {[%clk 0:02:45]}  g5 {[%clk 0:01:30]} 13. Bg3 {[%clk 0:02:45]}  Ne4 {[%clk 0:01:29]} 14. f3 {[%clk 0:02:33]}  Nxg3 {[%clk 0:01:13]} 15. hxg3 {[%clk 0:02:34]}  Kg7 {[%clk 0:01:13]} 16. e4 {[%clk 0:02:26]}  Qd6 {[%clk 0:00:59]} 17. Kf2 {[%clk 0:02:23]}  f5 {[%clk 0:00:55]} 18. e5 {[%clk 0:02:11]}  Qd5 {[%clk 0:00:38]} 19. Qd3 {[%clk 0:02:09]}  b5 {[%clk 0:00:35]} 20. Be2 {[%clk 0:02:07]}  a6 {[%clk 0:00:33]} 21. Bd1 {[%clk 0:02:03]}  Qc4 {[%clk 0:00:31]} 22. Qxc4 {[%clk 0:02:00]}  bxc4 {[%clk 0:00:32]} 23. Rb1 {[%clk 0:01:59]}  Rab8 {[%clk 0:00:30]} 24. Be2 {[%clk 0:01:57]}  Bd5 {[%clk 0:00:29]} 25. Ke3 {[%clk 0:01:47]}  f4+ {[%clk 0:00:20]} 26. gxf4 {[%clk 0:01:45]}  gxf4+ {[%clk 0:00:21]} 27. Kd2 {[%clk 0:01:37]}  Kh7 {[%clk 0:00:21]} 28. Rhc1 {[%clk 0:01:23]}  Rg8 {[%clk 0:00:19]} 29. Bf1 {[%clk 0:01:23]}  h5 {[%clk 0:00:18]} 30. Kc2 {[%clk 0:01:19]}  h4 {[%clk 0:00:17]} 31. Rxb8 {[%clk 0:01:14]}  Rxb8 {[%clk 0:00:17]} 32. Rb1 {[%clk 0:01:15]}  Rxb1 {[%clk 0:00:17]} 33. Kxb1 {[%clk 0:01:16]}  Kg6 {[%clk 0:00:15]} 34. Kc2 {[%clk 0:01:15]}  Kf5 {[%clk 0:00:15]} 35. Be2 {[%clk 0:01:12]}  c5 {[%clk 0:00:14]} 36. Kb2 {[%clk 0:01:03]}  a5 {[%clk 0:00:12]} 37. Ka3 {[%clk 0:01:02]}  cxd4 {[%clk 0:00:12]} 38. cxd4 {[%clk 0:01:02]}  c3 {[%clk 0:00:12]} 39. Bd3+ {[%clk 0:00:58]}  Kg5 {[%clk 0:00:12]} 40. Ka4 {[%clk 0:00:48]}  Bxa2 {[%clk 0:00:12]} 41. Bc2 {[%clk 0:00:47]}  Bc4 {[%clk 0:00:12]} 42. Kxa5 {[%clk 0:00:48]}  Bf1 {[%clk 0:00:12]} 43. Kb4 {[%clk 0:00:45]}  Bxg2 {[%clk 0:00:12]} 44. d5 {[%clk 0:00:40]}  exd5 {[%clk 0:00:13]} 45. Kc5 {[%clk 0:00:40]}  h3 {[%clk 0:00:13]} 46. e6 {[%clk 0:00:40]}  Kf6 {[%clk 0:00:12]} 47. Kd6 {[%clk 0:00:39]}  Bxf3 {[%clk 0:00:07]} 48. Bg6 {[%clk 0:00:25]}  c2 {[%clk 0:00:02]} 49. e7 {[%clk 0:00:21]}  c1=Q {[%clk 0:00:02]} 50. e8=Q {[%clk 0:00:21]}  Qa3+ {[%clk 0:00:03]} 51. Kc7 {[%clk 0:00:20]}  Qa7+ {[%clk 0:00:03]} 52. Kd6 {[%clk 0:00:16]}  Qb6+ {[%clk 0:00:03]} 53. Kd7 {[%clk 0:00:09]}  Qb5+ {[%clk 0:00:04]} 54. Kd6 {[%clk 0:00:10]}  Qxe8 {[%clk 0:00:05]} 55. Bxe8 {[%clk 0:00:10]}  h2 {[%clk 0:00:05]} 56. Bh5 {[%clk 0:00:10]}  h1=Q {[%clk 0:00:06]} 57. Bxf3 {[%clk 0:00:11]}  Qxf3 {[%clk 0:00:06]} 58. Kc5 {[%clk 0:00:09]}  Qe4 {[%clk 0:00:06]} 0-1


[Site "https://www.chess.com"]

[Event "Titled Tuesday Blitz August 1 Early 2023"]
[White "Klukin, Kirill"]
[Black "Namitbir Singh Walia"]
[WhiteFideId "24199273"]
[BlackFideId "35071068"]
[WhiteElo "2684"]
[BlackElo "2415"]
[Result "1-0"]
[Round "8"]
[TimeControl "180+1"]
[Date "2023.08.01"]
[WhiteClock "0:00:21"]
[BlackClock "0:00:03"]
[Board "96"]

1. d4 {[%clk 0:03:00]}  d5 {[%clk 0:02:59]} 2. Nf3 {[%clk 0:03:01]}  Nf6 {[%clk 0:02:58]} 3. c4 {[%clk 0:03:01]}  c6 {[%clk 0:02:59]} 4. Nc3 {[%clk 0:03:01]}  e6 {[%clk 0:03:00]} 5. e3 {[%clk 0:03:01]}  Nbd7 {[%clk 0:02:59]} 6. Qc2 {[%clk 0:03:01]}  Bd6 {[%clk 0:02:52]} 7. Bd3 {[%clk 0:03:01]}  O-O {[%clk 0:02:52]} 8. O-O {[%clk 0:03:02]}  dxc4 {[%clk 0:02:42]} 9. Bxc4 {[%clk 0:03:02]}  e5 {[%clk 0:02:42]} 10. Rd1 {[%clk 0:02:55]}  Qe7 {[%clk 0:02:42]} 11. e4 {[%clk 0:02:41]}  exd4 {[%clk 0:02:42]} 12. Nxd4 {[%clk 0:02:40]}  Ne5 {[%clk 0:02:42]} 13. Be2 {[%clk 0:02:34]}  Ng6 {[%clk 0:02:18]} 14. Nf5 {[%clk 0:01:54]}  Bxf5 {[%clk 0:02:16]} 15. exf5 {[%clk 0:01:55]}  Nf4 {[%clk 0:01:50]} 16. Bf3 {[%clk 0:01:51]}  Rfe8 {[%clk 0:01:44]} 17. Be3 {[%clk 0:01:42]}  N4d5 {[%clk 0:01:14]} 18. Bxd5 {[%clk 0:01:32]}  Ng4 {[%clk 0:00:23]} 19. Bf3 {[%clk 0:00:40]}  Bxh2+ {[%clk 0:00:21]} 20. Kf1 {[%clk 0:00:40]}  Nxe3+ {[%clk 0:00:15]} 21. fxe3 {[%clk 0:00:35]}  Bg3 {[%clk 0:00:15]} 22. Ne4 {[%clk 0:00:32]}  Qh4 {[%clk 0:00:13]} 23. Nxg3 {[%clk 0:00:31]}  Qxg3 {[%clk 0:00:14]} 24. Qf2 {[%clk 0:00:31]}  Qg5 {[%clk 0:00:14]} 25. e4 {[%clk 0:00:30]}  Rad8 {[%clk 0:00:14]} 26. Kg1 {[%clk 0:00:30]}  g6 {[%clk 0:00:13]} 27. Qxa7 {[%clk 0:00:21]}  gxf5 {[%clk 0:00:08]} 28. exf5 {[%clk 0:00:22]}  Rxd1+ {[%clk 0:00:07]} 29. Rxd1 {[%clk 0:00:22]}  Qxf5 {[%clk 0:00:08]} 30. Qd4 {[%clk 0:00:21]}  Re6 {[%clk 0:00:03]} 31. Qg4+ {[%clk 0:00:21]} 1-0


[Site "https://www.chess.com"]